bitfinex/quotes_SOLUSD_20260223
["timestamp","ask_amount","ask_price","bid_price","bid_amount"]
[1771811600962,21.14980678,77.74,77.709,12.86842848]
[1771811601542,21.14980678,77.74,77.714,12.86763097]
[1771811601758,21.14980678,77.74,77.714,4.05490074]
[1771811601969,3.69383402,77.785,77.712,32.16972591]
[1771811601970,21.14980678,77.75,77.722,16.92127062]
[1771811602272,21.14980678,77.78,77.723,4.05490074]
[1771811602571,21.14980678,77.76,77.723,4.05490074]
[1771811602773,21.14980678,77.76,77.722,45.03229458]
[1771811602774,12.85776737,77.774,77.725,4.05490074]
[1771811603071,44.98714652,77.8,77.725,4.05490074]
[1771811603256,44.98714652,77.8,77.724,45.0311358]
[1771811603257,21.14980678,77.79,77.727,4.05490074]
[1771811603573,21.14980678,77.8,77.735,4.05490074]
[1771811603876,21.14980678,77.8,77.745,4.05490074]
[1771811604268,1.34141778,77.816,77.745,4.05490074]
[1771811604269,21.14980678,77.79,77.745,4.05490074]
[1771811604576,21.14980678,77.81,77.755,4.05490074]
[1771811604782,21.14980678,77.79,77.744,4.05490074]
[1771811604975,21.14980678,77.8,77.744,4.05490074]
[1771811605269,21.14980678,77.81,77.744,4.05490074]
[1771811605472,21.14980678,77.81,77.748,4.05490074]
[1771811605652,12.84917219,77.827,77.754,4.05490074]
[1771811605852,1.34141778,77.835,77.743,96.47170805]
[1771811605853,21.14980678,77.82,77.764,4.05490074]
[1771811606069,21.14980678,77.81,77.764,4.05490074]
[1771811606860,21.14980678,77.8,77.766,4.05490074]
[1771811608470,21.14980678,77.81,77.766,4.05490074]
[1771811608866,21.14980678,77.79,77.768,4.05490074]
[1771811609074,21.14980678,77.8,77.768,4.05490074]
[1771811609967,1.34141778,77.824,77.768,4.05490074]
[1771811610166,1.34141778,77.838,77.768,4.05490074]
[1771811610366,12.84757657,77.836,77.768,4.05490074]
[1771811610577,32.11325187,77.85,77.771,0.28432314]
[1771811610578,21.14980678,77.83,77.771,0.28432314]
[1771811610782,21.14980678,77.83,77.776,4.05490074]
[1771811610985,21.14980678,77.82,77.776,4.05490074]
[1771811611170,21.14980678,77.81,77.776,4.05490074]
[1771811611783,21.14980678,77.8,77.776,4.05490074]
[1771811611973,21.14980678,77.81,77.776,4.05490074]
[1771811612164,21.14980678,77.82,77.776,4.05490074]
[1771811612572,1.34141778,77.809,77.775,12.85760205]
[1771811612771,21.14980678,77.79,77.766,12.85896128]
[1771811613083,21.14980678,77.8,77.767,4.05490074]
[1771811613281,21.14980678,77.81,77.767,4.05490074]
[1771811613779,51.35539225,77.889,77.767,4.05490074]
[1771811613780,32.11592735,77.843,77.767,4.05490074]
[1771811613971,21.14980678,77.82,77.767,4.05490074]
[1771811614369,21.14980678,77.81,77.767,4.05490074]
[1771811615483,21.14980678,77.81,77.755,4.05490074]
[1771811615484,21.14980678,77.79,77.755,4.05490074]
[1771811615683,1.34141778,77.832,77.757,4.05490074]
[1771811615983,21.14980678,77.82,77.765,4.05490074]
[1771811616166,21.14980678,77.81,77.765,4.05490074]
[1771811616562,21.14980678,77.79,77.765,4.05490074]
[1771811616869,21.14980678,77.81,77.765,4.05490074]
[1771811617080,21.14980678,77.8,77.765,4.05490074]
[1771811617385,21.14980678,77.8,77.767,4.05490074]
[1771811617984,21.14980678,77.79,77.767,4.05490074]
[1771811618183,21.14980678,77.8,77.767,4.05490074]
[1771811618480,21.14980678,77.81,77.767,4.05490074]
[1771811618883,21.14980678,77.8,77.767,4.05490074]
[1771811619275,21.14980678,77.81,77.767,4.05490074]
[1771811619476,21.14980678,77.81,77.769,4.38604296]
[1771811619790,21.14980678,77.83,77.775,4.38604296]
[1771811619996,21.14980678,77.8,77.775,4.38604296]
[1771811620291,1.34141778,77.789,77.75,4.38604296]
[1771811620586,1.34141778,77.789,77.751,49.40154115]
[1771811620781,21.14980678,77.78,77.752,4.38604296]
[1771811621383,21.14980678,77.78,77.751,45.01549819]
[1771811621384,21.14980678,77.8,77.754,4.38604296]
[1771811622178,1.34141778,77.816,77.754,4.38604296]
[1771811622179,21.14980678,77.79,77.754,4.38604296]
[1771811622383,21.14980678,77.78,77.754,4.38604296]
[1771811623378,21.14980678,77.78,77.755,12.86090926]
[1771811623773,21.14980678,77.77,77.755,12.86090926]
[1771811623976,21.14980678,77.78,77.746,4.38604296]
[1771811624496,21.14980678,77.77,77.745,12.8625635]
[1771811624993,21.14980678,77.77,77.746,4.38604296]
[1771811625393,21.14980678,77.77,77.747,12.86223262]
[1771811625604,21.14980678,77.78,77.748,4.38604296]
[1771811626390,21.14980678,77.77,77.747,12.86223262]
[1771811626774,21.14980678,77.76,77.731,12.86488016]
[1771811627481,1.34141778,77.769,77.731,12.86488016]
[1771811627482,21.14980678,77.75,77.731,12.86488016]
[1771811627682,21.14980678,77.76,77.731,12.86488016]
[1771811628390,64.26883588,77.799,77.732,4.38604296]
[1771811628391,12.85694081,77.779,77.732,4.38604296]
[1771811628699,21.14980678,77.74,77.721,0.2436742]
[1771811628989,21.14980678,77.75,77.723,4.38604296]
[1771811629390,21.14980678,77.76,77.723,4.38604296]
[1771811629777,21.14980678,77.76,77.725,4.38604296]
[1771811630594,21.14980678,77.77,77.725,4.38604296]
[1771811631408,3.69383402,77.805,77.725,4.38604296]
[1771811631409,1.34141778,77.844,77.729,4.38604296]
[1771811631701,1.34141778,77.844,77.752,0.28432314]
[1771811631702,21.14980678,77.81,77.752,0.28432314]
[1771811631992,51.36430833,77.876,77.755,4.38604296]
[1771811631993,21.14980678,77.8,77.755,4.38604296]
[1771811632388,4.31486781,77.759,77.726,21.14980678]
[1771811632589,4.31486781,77.759,77.69,51.48667061]
[1771811632978,21.14980678,77.77,77.693,3.69383402]
[1771811633184,4.31486781,77.784,77.722,0.28432314]
[1771811633384,21.14980678,77.79,77.725,3.69383402]
[1771811633804,4.31486781,77.795,77.722,148.24757676]
[1771811634006,32.12583045,77.819,77.722,148.24757676]
[1771811634007,21.14980678,77.79,77.722,148.24757676]
[1771811634179,4.31486781,77.789,77.722,96.78209724]
[1771811634386,4.31486781,77.769,77.723,4.38604296]
[1771811634587,21.14980678,77.79,77.725,4.38604296]
[1771811634777,4.31486781,77.802,77.729,4.6703661]
[1771811634778,21.14980678,77.8,77.729,4.6703661]
[1771811634984,4.31486781,77.789,77.729,4.6703661]
[1771811635187,4.31486781,77.832,77.729,4.6703661]
[1771811635483,21.14980678,77.81,77.729,4.6703661]
[1771811635900,4.31486781,77.819,77.734,4.6703661]
[1771811636202,25.46467459,77.83,77.734,4.6703661]
[1771811636800,5.36086188,77.863,77.718,5.36086188]
[1771811636801,4.31486781,77.839,77.718,4.17839347]
[1771811637000,4.31486781,77.839,77.62,9.24297799]
[1771811637001,21.14980678,77.73,77.587,42.23321488]
[1771811637199,5.36086188,77.723,77.674,4.38604296]
[1771811637397,5.36086188,77.723,77.673,16.87808766]
[1771811637398,1.851,77.679,77.673,16.80845149]
[1771811637707,21.14980678,77.69,77.58,9.01723324]
[1771811637912,21.14980678,77.69,77.405,35.11106465]
[1771811637913,21.14980678,77.69,77.57,21.14980678]
[1771811638091,21.14980678,77.71,77.57,21.14980678]
[1771811638280,5.36086188,77.738,77.571,1.28914156]
[1771811638598,4.31486781,77.729,77.612,51.53830528]
[1771811638907,21.14980678,77.73,77.612,51.53830528]
[1771811638908,4.31486781,77.719,77.613,1.28844394]
[1771811639087,4.31486781,77.731,77.612,51.53830528]
[1771811639404,51.40989989,77.807,77.641,4.38604296]
[1771811639405,4.31486781,77.744,77.641,4.38604296]
[1771811639607,21.14980678,77.75,77.65,0.14216157]
[1771811639814,21.14980678,77.75,77.668,0.28432314]
[1771811640021,4.31486781,77.749,77.677,4.38604296]
[1771811640185,32.1439755,77.776,77.676,0.14216157]
[1771811640186,4.31486781,77.77,77.681,4.38604296]
[1771811640382,4.31486781,77.77,77.67,0.14216157]
[1771811640383,4.31486781,77.789,77.699,4.38604296]
[1771811640583,21.14980678,77.75,77.701,4.38604296]
[1771811640803,21.14980678,77.74,77.701,4.38604296]
[1771811640990,21.14980678,77.75,77.701,4.38604296]
[1771811641199,21.14980678,77.76,77.701,4.38604296]
[1771811641401,21.14980678,77.75,77.701,4.38604296]
[1771811641602,4.31486781,77.739,77.686,4.38604296]
[1771811641804,4.31486781,77.729,77.686,4.38604296]
[1771811642014,4.31486781,77.729,77.687,45.05258279]
[1771811642309,4.31486781,77.74,77.661,4.38604296]
[1771811642514,4.31486781,77.729,77.661,4.38604296]
[1771811642812,21.14980678,77.72,77.667,4.38604296]
[1771811643007,3.69383402,77.762,77.66,199.58794743]
[1771811643008,4.31486781,77.699,77.66,45.06824619]
[1771811643310,12.86272895,77.744,77.649,4.38604296]
[1771811643311,4.31486781,77.703,77.649,4.38604296]
[1771811643493,4.31486781,77.709,77.649,4.38604296]
[1771811643696,21.14980678,77.71,77.649,4.38604296]
[1771811644208,4.31486781,77.719,77.651,4.38604296]
[1771811644710,21.14980678,77.71,77.651,4.38604296]
[1771811645004,5.36086188,77.745,77.656,4.38604296]
[1771811645005,4.31486781,77.745,77.656,4.38604296]
[1771811645193,25.46467459,77.74,77.666,4.38604296]
[1771811645391,4.31486781,77.739,77.668,4.38604296]
[1771811645586,4.31486781,77.739,77.653,3.69383402]
[1771811645587,4.31486781,77.739,77.678,4.38604296]
[1771811645791,4.18628781,77.739,77.679,4.38604296]
[1771811646207,4.18628781,77.739,77.65,315.51835154]
[1771811646208,4.18628781,77.739,77.681,4.38604296]
[1771811647304,21.14980678,77.73,77.681,4.38604296]
[1771811647606,21.14980678,77.75,77.682,0.28432314]
[1771811647807,4.31486781,77.759,77.687,4.38604296]
[1771811648013,21.14980678,77.77,77.698,4.38604296]
[1771811648304,21.14980678,77.76,77.7,4.38604296]
[1771811649016,21.14980678,77.73,77.699,45.04562477]
[1771811649196,5.64518502,77.761,77.699,45.04562477]
[1771811649513,21.14980678,77.73,77.699,45.04562477]
[1771811649693,21.14980678,77.71,77.663,12.87614436]
[1771811649895,4.13255615,77.69,77.605,51.54263897]
[1771811650100,5.36086188,77.715,77.605,51.54263897]
[1771811650101,21.14980678,77.66,77.624,4.34833408]
[1771811650410,21.14980678,77.67,77.624,4.34833408]
[1771811650720,21.14980678,77.66,77.624,4.34833408]
[1771811651110,21.14980678,77.66,77.625,45.08856682]
[1771811651414,21.14980678,77.65,77.625,45.08856682]
[1771811651707,12.87168094,77.69,77.604,10.0]
[1771811651708,3.96971692,77.652,77.61,12.8849375]
[1771811651899,3.96971692,77.659,77.611,4.34833408]
[1771811652105,21.14980678,77.65,77.611,4.34833408]
[1771811652294,3.69383402,77.672,77.61,32.21234377]
[1771811652295,21.14980678,77.63,77.61,32.21234377]
[1771811652689,3.96971692,77.649,77.61,32.21234377]
[1771811652888,25.1195237,77.64,77.61,32.21234377]
[1771811653094,25.1195237,77.64,77.605,12.88576766]
[1771811653095,3.89071955,77.619,77.564,17.24091311]
[1771811653315,3.89071955,77.632,77.566,4.34833408]
[1771811653520,21.14980678,77.59,77.564,45.1240266]
[1771811653722,3.89071955,77.64,77.565,4.34833408]
[1771811654213,25.04052633,77.63,77.567,4.34833408]
[1771811654418,3.89071955,77.629,77.567,4.34833408]
[1771811654617,9.0546959,77.659,77.567,4.34833408]
[1771811654618,5.36086188,77.699,77.57,4.62251147]
[1771811654917,5.36086188,77.699,77.569,3.69383402]
[1771811654918,21.14980678,77.65,77.578,4.4803499]
[1771811655313,21.27129893,77.65,77.578,4.4803499]
[1771811655515,3.69383402,77.672,77.578,4.4803499]
[1771811655700,0.28432314,77.659,77.578,4.4803499]
[1771811655896,3.69383402,77.676,77.586,4.4803499]
[1771811656105,3.69383402,77.676,77.566,315.86004175]
[1771811656106,21.27129893,77.68,77.595,4.4803499]
[1771811656302,21.27129893,77.68,77.607,4.4803499]
[1771811656502,32.17105297,77.71,77.588,315.77047992]
[1771811656503,21.27129893,77.71,77.608,4.76467304]
[1771811656906,21.27129893,77.7,77.608,4.76467304]
[1771811657816,0.03890719,77.701,77.61,0.28432314]
[1771811658028,0.03890719,77.701,77.623,4.4803499]
[1771811658258,21.27129893,77.69,77.601,4.4803499]
[1771811658518,21.27129893,77.69,77.627,4.4803499]
[1771811659222,0.03890719,77.701,77.601,4.4803499]
[1771811659402,21.27129893,77.7,77.601,4.76467304]
[1771811659800,0.03890719,77.714,77.601,4.76467304]
[1771811660005,21.27129893,77.71,77.618,4.76467304]
[1771811660208,21.27129893,77.72,77.623,4.76467304]
[1771811660416,21.27129893,77.72,77.64,4.4803499]
[1771811660621,0.03890719,77.727,77.648,4.4803499]
[1771811660622,21.27129893,77.71,77.648,4.4803499]
[1771811660821,21.31020612,77.72,77.648,4.4803499]
[1771811661018,37.30756982,77.766,77.651,0.28432314]
[1771811661232,0.03890719,77.748,77.663,4.76467304]
[1771811661529,21.27129893,77.76,77.663,4.76467304]
[1771811661827,21.27129893,77.75,77.667,4.76467304]
[1771811662039,0.03890719,77.769,77.667,4.76467304]
[1771811662242,0.03890719,77.769,77.676,4.76467304]
[1771811662449,21.27129893,77.76,77.692,4.4803499]
[1771811662740,21.27129893,77.76,77.695,4.76467304]
[1771811662937,0.03890719,77.769,77.695,4.76467304]
[1771811663139,0.03890719,77.803,77.695,4.76467304]
[1771811663357,0.03890719,77.789,77.695,4.76467304]
[1771811663650,21.27129893,77.8,77.695,4.76467304]
[1771811664227,0.03890719,77.802,77.695,4.76467304]
[1771811664548,0.03890719,77.802,77.714,4.76467304]
[1771811664720,0.03890719,77.815,77.714,4.76467304]
[1771811665056,21.31020612,77.84,77.734,4.4803499]
[1771811665234,0.03890719,77.829,77.74,4.4803499]
[1771811665424,12.84623489,77.844,77.758,4.4803499]
[1771811665628,0.03890719,77.843,77.768,4.4803499]
[1771811666023,21.47129893,77.85,77.773,0.28432314]
[1771811666228,0.2,77.85,77.778,4.4803499]
[1771811666427,0.03890719,77.849,77.78,4.4803499]
[1771811666641,0.03890719,77.849,77.779,96.42705612]
[1771811666642,0.2,77.85,77.785,0.28432314]
[1771811666842,1e-08,77.85,77.794,4.4803499]
[1771811667030,1e-08,77.85,77.798,4.4803499]
[1771811667230,0.03890719,77.849,77.798,4.4803499]
[1771811667540,1e-08,77.85,77.798,4.4803499]
[1771811668449,1e-08,77.85,77.8,4.4803499]
[1771811669140,0.03890719,77.849,77.8,4.4803499]
[1771811670632,0.03890719,77.849,77.802,4.4803499]
[1771811671043,1e-08,77.85,77.802,4.4803499]
[1771811671954,21.31020613,77.85,77.802,4.4803499]
[1771811672262,1e-08,77.85,77.802,4.4803499]
[1771811672430,0.03890719,77.849,77.802,4.4803499]
[1771811672632,0.03890719,77.839,77.803,12.85297482]
[1771811672844,0.03890719,77.809,77.779,12.85694081]
[1771811673043,21.27129893,77.82,77.779,12.85694081]
[1771811673261,0.03890719,77.819,77.779,44.99929285]
[1771811673926,9.0546959,77.849,77.779,44.99929285]
[1771811673927,31.14400724,77.83,77.78,4.4803499]
[1771811674152,31.14400724,77.82,77.78,4.4803499]
[1771811674340,31.14400724,77.82,77.779,44.99929285]
[1771811674341,31.18291443,77.82,77.779,44.99929285]
[1771811674742,31.18291443,77.82,77.779,32.14235204]
[1771811675347,31.14400724,77.81,77.779,32.14235204]
[1771811675739,31.14400724,77.8,77.769,12.85859404]
[1771811676133,31.14400724,77.79,77.769,12.85859404]
[1771811676435,31.14400724,77.81,77.769,12.85859404]
[1771811676634,31.14400724,77.81,77.756,45.01260352]
[1771811676835,0.03890719,77.809,77.757,4.4803499]
[1771811677049,31.14400724,77.8,77.757,4.4803499]
[1771811677252,12.89089089,77.809,77.756,45.01260352]
[1771811677253,0.03890719,77.789,77.756,45.01260352]
[1771811677842,12.8519837,77.809,77.756,45.01260352]
[1771811677843,31.14400724,77.81,77.757,4.4803499]
[1771811678044,31.14400724,77.82,77.757,4.4803499]
[1771811678557,31.14400724,77.81,77.757,4.4803499]
[1771811678755,31.14400724,77.8,77.758,45.01144576]
[1771811679059,31.14400724,77.78,77.735,4.4803499]
[1771811679855,44.98772477,77.799,77.731,12.86488016]
[1771811679856,31.14400724,77.75,77.731,12.86488016]
[1771811680242,0.03890719,77.784,77.732,4.4803499]
[1771811680558,31.14400724,77.76,77.731,45.02708056]
[1771811680965,0.03890719,77.749,77.72,45.03345341]
[1771811681137,0.03890719,77.762,77.72,45.03345341]
[1771811681341,31.14400724,77.76,77.72,49.51380331]
[1771811681550,31.14400724,77.75,77.72,12.86670097]
[1771811681860,31.14400724,77.75,77.664,45.065925]
[1771811681861,0.03890719,77.729,77.664,45.065925]
[1771811682059,31.14400724,77.73,77.665,4.4803499]
[1771811682255,14.22542048,77.773,77.665,4.4803499]
[1771811682256,31.18291443,77.75,77.665,4.4803499]
[1771811682441,31.14400724,77.76,77.668,4.4803499]
[1771811682642,31.14400724,77.76,77.669,0.28432314]
[1771811682852,31.14400724,77.76,77.678,4.4803499]
[1771811683046,31.14400724,77.76,77.68,4.4803499]
[1771811683244,0.03890719,77.759,77.688,4.4803499]
[1771811683536,31.14400724,77.74,77.677,45.05838278]
[1771811683742,31.14400724,77.72,77.678,4.4803499]
[1771811683941,5.36086188,77.749,77.678,4.4803499]
[1771811683942,31.14400724,77.71,77.678,4.4803499]
[1771811684151,0.03890719,77.738,77.678,4.4803499]
[1771811684358,31.14400724,77.72,77.678,4.4803499]
[1771811684770,31.14400724,77.75,77.678,4.4803499]
[1771811684947,31.14400724,77.76,77.681,0.28432314]
[1771811685155,31.14400724,77.75,77.688,4.4803499]
[1771811685356,0.03890719,77.835,77.693,4.76467304]
[1771811685562,0.03890719,77.769,77.693,4.76467304]
[1771811685760,31.14400724,77.78,77.693,4.76467304]
[1771811686664,20.06769951,77.834,77.693,4.76467304]
[1771811686665,31.14400724,77.79,77.693,4.76467304]
[1771811686867,31.14400724,77.79,77.698,0.28432314]
[1771811687068,31.14400724,77.81,77.713,0.28432314]
[1771811687250,0.03890719,77.799,77.728,4.4803499]
[1771811687454,31.14400724,77.81,77.728,4.4803499]
[1771811687657,0.03890719,77.812,77.736,4.4803499]
[1771811687854,0.03890719,77.812,77.738,4.4803499]
[1771811688054,31.14400724,77.81,77.738,4.4803499]
[1771811688869,0.03890719,77.819,77.694,315.33966586]
[1771811688870,0.03890719,77.789,77.728,4.4803499]
[1771811689166,0.03890719,77.769,77.727,45.02939775]
[1771811689347,31.14400724,77.76,77.727,45.02939775]
[1771811689545,0.03890719,77.769,77.727,45.02939775]
[1771811690366,31.14400724,77.75,77.727,12.86554221]
[1771811690554,31.14400724,77.76,77.727,12.86554221]
[1771811690753,31.14400724,77.77,77.727,49.50974765]
[1771811691145,31.14400724,77.76,77.727,45.02939775]
[1771811691351,31.14400724,77.78,77.728,4.4803499]
[1771811691545,31.14400724,77.79,77.728,4.4803499]
[1771811691749,0.03890719,77.789,77.728,4.4803499]
[1771811691955,0.03890719,77.779,77.728,4.4803499]
[1771811692163,0.03890719,77.789,77.728,4.4803499]
[1771811692372,0.03890719,77.804,77.728,4.4803499]
[1771811692677,31.14400724,77.79,77.728,4.4803499]
[1771811693673,31.14400724,77.79,77.73,4.4803499]
[1771811694055,31.18291443,77.79,77.73,4.4803499]
[1771811694666,31.14400724,77.78,77.73,4.4803499]
[1771811694865,0.03890719,77.789,77.73,4.4803499]
[1771811695254,21.19807283,77.78,77.73,4.4803499]
[1771811695568,5.36086188,77.809,77.732,4.4803499]
[1771811695569,21.19807283,77.79,77.732,4.4803499]
[1771811695955,37.48674782,77.819,77.731,109.35148137]
[1771811695956,21.19807283,77.82,77.741,0.28432314]
[1771811696158,0.03890719,77.827,77.755,0.28432314]
[1771811696374,21.19807283,77.83,77.758,4.4803499]
[1771811696967,0.03890719,77.819,77.758,4.4803499]
[1771811697870,0.03890719,77.819,77.76,4.4803499]
[1771811698070,21.19807283,77.82,77.76,4.4803499]
[1771811698453,0.03890719,77.819,77.76,4.4803499]
[1771811699264,12.88923937,77.819,77.76,4.4803499]
[1771811699456,0.03890719,77.818,77.76,4.4803499]
[1771811699653,21.23698002,77.81,77.76,4.4803499]
[1771811700072,5.36086188,77.839,77.762,4.4803499]
[1771811700073,21.19807283,77.82,77.762,4.4803499]
[1771811700275,21.19807283,77.81,77.762,4.4803499]
[1771811700475,44.96408752,77.84,77.761,45.00970923]
[1771811700476,21.19807283,77.79,77.761,45.00970923]
[1771811700664,0.03890719,77.82,77.762,4.4803499]
[1771811700868,21.19807283,77.8,77.762,4.4803499]
[1771811701261,21.19807283,77.79,77.761,12.85991692]
[1771811701767,21.19807283,77.79,77.761,45.00970923]
[1771811702078,21.19807283,77.79,77.742,4.4803499]
[1771811702079,21.19807283,77.77,77.731,17.34523006]
[1771811702277,21.19807283,77.75,77.718,12.86703209]
[1771811702482,21.19807283,77.73,77.691,49.53061311]
[1771811702985,0.03890719,77.724,77.691,12.87150377]
[1771811703297,21.19807283,77.72,77.691,12.87150377]
[1771811703479,21.19807283,77.74,77.692,4.4803499]
[1771811704076,21.19807283,77.74,77.694,4.4803499]
[1771811704581,21.19807283,77.73,77.693,45.04910351]
[1771811705278,0.03890719,77.784,77.694,4.4803499]
[1771811705482,0.03890719,77.759,77.694,4.4803499]
[1771811705687,21.19807283,77.75,77.694,4.4803499]
[1771811706065,21.19807283,77.75,77.696,4.4803499]
[1771811706066,0.03890719,77.748,77.696,4.4803499]
[1771811706387,21.19807283,77.76,77.696,4.4803499]
[1771811706564,3.69383402,77.78,77.695,109.40214941]
[1771811706565,0.03890719,77.775,77.7,4.4803499]
[1771811706762,0.03890719,77.809,77.718,4.4803499]
[1771811707077,0.03890719,77.809,77.72,4.4803499]
[1771811707279,21.19807283,77.8,77.72,4.4803499]
[1771811707582,0.03890719,77.809,77.73,4.4803499]
[1771811708379,21.19807283,77.8,77.732,4.4803499]
[1771811708573,0.03890719,77.808,77.732,4.4803499]
[1771811708861,21.19807283,77.83,77.744,4.4803499]
[1771811709065,21.19807283,77.83,77.75,4.4803499]
[1771811709261,0.03890719,77.832,77.76,4.4803499]
[1771811709482,21.19807283,77.84,77.76,4.4803499]
[1771811709875,21.19807283,77.84,77.768,4.4803499]
[1771811710079,21.19807283,77.84,77.77,4.4803499]
[1771811710259,1e-08,77.85,77.784,4.4803499]
[1771811710464,1e-08,77.85,77.79,4.4803499]
[1771811710660,21.19807283,77.83,77.79,4.4803499]
[1771811710971,21.19807283,77.83,77.785,96.41961817]
[1771811710972,21.19807283,77.82,77.785,12.85594909]
[1771811711172,21.19807283,77.82,77.785,49.47617171]
[1771811711684,3.69383403,77.85,77.786,4.4803499]
[1771811711685,21.19807283,77.83,77.786,4.4803499]
[1771811711879,1e-08,77.85,77.786,4.4803499]
[1771811712362,21.39807283,77.88,77.796,4.4803499]
[1771811712563,21.19807283,77.91,77.794,3.69383402]
[1771811712564,0.03890719,77.899,77.808,4.4803499]
[1771811712768,51.29683659,77.978,77.818,4.76467304]
[1771811712769,21.19807283,77.9,77.818,4.76467304]
[1771811713069,21.19807283,77.89,77.818,4.76467304]
[1771811713787,21.19807283,77.9,77.818,4.76467304]
[1771811714285,51.29073841,77.987,77.826,4.76467304]
[1771811714286,21.19807283,77.91,77.826,4.76467304]
[1771811714493,21.19807283,77.91,77.84,4.4803499]
[1771811714695,12.83276708,77.926,77.84,4.4803499]
[1771811714876,0.03890719,77.959,77.854,4.4803499]
[1771811715203,0.03890719,77.959,77.851,3.97815716]
[1771811715204,21.19807283,77.94,77.87,4.4803499]
[1771811715381,21.19807283,77.93,77.87,4.4803499]
[1771811715582,21.19807283,77.94,77.87,4.4803499]
[1771811716300,21.19807283,77.93,77.87,4.4803499]
[1771811716596,21.19807283,77.94,77.872,4.4803499]
[1771811717000,21.19807283,77.93,77.872,4.4803499]
[1771811717181,0.03890719,77.947,77.872,4.4803499]
[1771811717376,31.04879262,77.93,77.872,4.4803499]
[1771811717573,31.04879262,77.94,77.878,4.4803499]
[1771811717777,31.04879262,77.94,77.871,96.31313325]
[1771811717778,31.04879262,77.95,77.88,4.4803499]
[1771811717977,0.03890719,77.964,77.88,4.4803499]
[1771811718204,31.04879262,77.93,77.88,4.4803499]
[1771811718376,31.04879262,77.92,77.881,44.94035771]
[1771811718581,31.04879262,77.91,77.881,12.8401022]
[1771811718796,31.04879262,77.92,77.881,12.8401022]
[1771811719006,31.04879262,77.91,77.881,44.94035771]
[1771811719188,31.04879262,77.91,77.881,12.8401022]
[1771811719694,31.04879262,77.92,77.882,4.4803499]
[1771811720487,31.04879262,77.95,77.884,4.4803499]
[1771811721017,0.03890719,77.943,77.884,4.4803499]
[1771811721192,31.04879262,77.92,77.884,4.4803499]
[1771811722206,31.04879262,77.91,77.883,44.93920366]
[1771811722601,31.04879262,77.91,77.882,4.4803499]
[1771811722805,31.04879262,77.92,77.882,4.4803499]
[1771811723208,31.04879262,77.92,77.847,4.76467304]
[1771811723500,31.04879262,77.91,77.847,4.76467304]
[1771811723692,31.04879262,77.92,77.847,4.76467304]
[1771811724398,31.04879262,77.91,77.849,0.28432314]
[1771811724596,31.04879262,77.91,77.85,4.4803499]
[1771811725408,31.04879262,77.92,77.85,4.4803499]
[1771811726718,31.04879262,77.91,77.852,4.4803499]
[1771811727616,5.36086188,77.939,77.852,4.4803499]
[1771811727617,31.04879262,77.92,77.852,4.4803499]
[1771811728118,31.04879262,77.91,77.852,4.4803499]
[1771811728314,31.04879262,77.9,77.852,4.4803499]
[1771811728529,0.03890719,77.879,77.851,12.84505015]
[1771811728695,31.04879262,77.87,77.84,4.4803499]
[1771811728895,31.04879262,77.87,77.839,32.11747942]
[1771811729330,31.04879262,77.85,77.819,4.4803499]
[1771811729923,31.04879262,77.86,77.819,4.4803499]
[1771811730313,31.04879262,77.85,77.819,4.4803499]
[1771811730502,31.04879262,77.85,77.818,12.85049731]
[1771811730703,0.03890719,77.829,77.771,4.4803499]
[1771811730898,31.04879262,77.83,77.771,4.4803499]
[1771811731812,0.03890719,77.855,77.771,4.4803499]
[1771811732015,31.04879262,77.85,77.774,4.4803499]
[1771811732196,31.04879262,77.85,77.78,4.4803499]
[1771811732400,31.04879262,77.84,77.788,4.4803499]
[1771811732612,32.10600485,77.868,77.773,3.69383402]
[1771811732613,0.03890719,77.866,77.774,4.76467304]
[1771811732919,31.04879262,77.86,77.8,4.4803499]
[1771811733106,31.04879262,77.85,77.8,4.4803499]
[1771811733418,31.04879262,77.84,77.8,4.4803499]
[1771811734522,0.03890719,77.849,77.802,4.4803499]
[1771811735321,31.04879262,77.85,77.802,4.4803499]
[1771811736717,0.03890719,77.861,77.804,4.4803499]
[1771811736938,31.04879262,77.85,77.804,4.4803499]
[1771811737220,31.04879262,77.84,77.804,4.4803499]
[1771811737823,31.04879262,77.83,77.804,4.4803499]
[1771811738006,31.04879262,77.84,77.804,4.4803499]
[1771811738505,31.04879262,77.83,77.804,4.4803499]
[1771811738822,31.04879262,77.84,77.806,4.4803499]
[1771811739205,21.16426826,77.84,77.806,4.4803499]
[1771811739817,0.03890719,77.866,77.806,4.4803499]
[1771811740014,21.16426826,77.85,77.806,4.4803499]
[1771811740629,0.03890719,77.864,77.806,4.4803499]
[1771811740844,21.16426826,77.85,77.806,4.4803499]
[1771811741205,21.16426826,77.85,77.808,4.4803499]
[1771811741522,21.16426826,77.86,77.808,4.4803499]
[1771811741932,0.03890719,77.864,77.808,4.4803499]
[1771811742222,21.16426826,77.86,77.808,4.4803499]
[1771811742819,21.16426826,77.85,77.808,4.4803499]
[1771811743126,21.16426826,77.83,77.807,32.13078514]
[1771811743730,21.16426826,77.84,77.807,32.13078514]
[1771811745434,0.03890719,77.819,77.798,12.85380086]
[1771811746025,21.16426826,77.81,77.798,12.85380086]
[1771811746332,21.16426826,77.81,77.741,51.45257331]
[1771811746333,0.03890719,77.809,77.741,12.86322532]
[1771811746515,21.16426826,77.79,77.76,4.4803499]